fUST/lending_fUST_20240917
["ID","MTS","AMOUNT","RATE_DAILY","PERIOD"]
[338352108,1726545044001,-500.0,0.00019273,2]
[338352109,1726545044010,-301.70782929,0.00019273,2]
[338352110,1726545044021,-500.92205063,0.00019273,2]
[338352111,1726545044030,-500.0,0.00019273,2]
[338352112,1726545044039,-500.0,0.00019273,2]
[338352113,1726545044048,-2000.0,0.00019279,2]
[338352115,1726545044059,-2000.0,0.00019279,2]
[338352116,1726545044069,-2000.0,0.00019279,2]
[338352117,1726545044078,-2000.0,0.00019279,2]
[338352118,1726545044087,-2000.0,0.00019279,2]
[338352119,1726545044096,-1462.69999118,0.00019279,2]
[338352120,1726545044105,-34123.29535592,0.0001928,2]
[338352121,1726545044115,-151.0,0.0001928,2]
[338352122,1726545044125,-151.0,0.0001928,2]
[338352123,1726545044134,-151.0,0.0001928,2]
[338352124,1726545044143,-279.253674,0.0001928,2]
[338352125,1726545044152,-279.253674,0.0001928,2]
[338352126,1726545044161,-173.647869,0.0001928,2]
[338352127,1726545044170,-173.647869,0.0001928,2]
[338352128,1726545044180,-1039.563439,0.0001928,2]
[338352129,1726545044189,-1039.563439,0.0001928,2]
[338352130,1726545044199,-151.0,0.0001928,2]
[338352131,1726545044208,-776.12065,0.0001928,2]
[338352132,1726545044217,-153.645148,0.0001928,2]
[338352133,1726545044227,-776.12065,0.0001928,2]
[338352134,1726545044237,-524.852005,0.0001928,2]
[338352135,1726545044247,-524.852005,0.0001928,2]
[338352136,1726545044257,-917.23697,0.0001928,2]
[338352137,1726545044268,-917.23697,0.0001928,2]
[338352138,1726545044278,-1000.0,0.0001928,2]
[338352139,1726545044288,-1000.0,0.0001928,2]
[338352140,1726545044297,-1000.0,0.0001928,2]
[338352141,1726545044307,-1000.0,0.0001928,2]
[338352142,1726545044316,-1000.0,0.0001928,2]
[338352143,1726545044325,-1000.0,0.0001928,2]
[338352144,1726545044335,-1000.0,0.0001928,2]
[338352145,1726545044344,-791.536608,0.0001928,2]
[338352146,1726545044353,-1000.0,0.0001928,2]
[338352147,1726545044363,-1000.0,0.0001928,2]
[338352148,1726545044373,-1000.0,0.0001928,2]
[338352149,1726545044382,-1000.0,0.0001928,2]
[338352150,1726545044392,-1000.0,0.0001928,2]
[338352151,1726545044402,-1000.0,0.0001928,2]
[338352152,1726545044411,-1000.0,0.0001928,2]
[338352153,1726545044421,-1000.0,0.0001928,2]
[338352154,1726545044430,-1000.0,0.0001928,2]
[338352155,1726545044439,-1000.0,0.0001928,2]
[338352156,1726545044448,-1000.0,0.0001928,2]
[338352157,1726545044458,-791.536608,0.0001928,2]
[338352158,1726545044467,-1000.0,0.0001928,2]
[338352159,1726545044477,-1000.0,0.0001928,2]
[338352160,1726545044487,-1000.0,0.0001928,2]
[338352161,1726545044496,-1000.0,0.0001928,2]
[338352162,1726545044505,-1000.0,0.0001928,2]
[338352163,1726545044515,-1000.0,0.0001928,2]
[338352164,1726545044524,-1000.0,0.0001928,2]
[338352165,1726545044533,-1000.0,0.0001928,2]
[338352166,1726545044543,-1000.0,0.0001928,2]
[338352167,1726545044552,-1000.0,0.0001928,2]
[338352168,1726545044561,-1000.0,0.0001928,2]
[338352169,1726545044571,-1000.0,0.0001928,2]
[338352170,1726545044581,-1000.0,0.0001928,2]
[338352171,1726545044591,-1000.0,0.0001928,2]
[338352172,1726545044600,-1000.0,0.0001928,2]
[338352173,1726545044609,-1000.0,0.0001928,2]
[338352174,1726545044618,-1000.0,0.0001928,2]
[338352175,1726545044628,-1000.0,0.0001928,2]
[338352176,1726545044637,-1000.0,0.0001928,2]
[338352177,1726545044646,-1000.0,0.0001928,2]
[338352178,1726545044656,-1000.0,0.0001928,2]
[338352179,1726545044665,-1000.0,0.0001928,2]
[338352180,1726545044674,-1000.0,0.0001928,2]
[338352181,1726545044683,-1000.0,0.0001928,2]
[338352182,1726545044692,-1000.0,0.0001928,2]
[338352183,1726545044701,-13961.7398892,0.0001928,3]
[338352184,1726545044710,-314.4,0.00019283,2]
[338352185,1726545044720,-151.0,0.0001929,2]
[338352186,1726545044730,-192.153508,0.0001929,2]
[338352187,1726545044739,-192.153508,0.0001929,2]
[338352188,1726545044748,-155.713951,0.0001929,2]
[338352189,1726545044758,-155.713951,0.0001929,2]
[338352190,1726545044767,-151.0,0.0001929,2]
[338352191,1726545044776,-151.0,0.0001929,2]
[338352192,1726545044786,-151.0,0.0001929,2]
[338352193,1726545044795,-351.657342,0.0001929,2]
[338352194,1726545044805,-351.657342,0.0001929,2]
[338352195,1726545044814,-151.0,0.0001929,2]
[338352196,1726545044830,-474.402333,0.0001929,2]
[338352197,1726545044841,-474.402333,0.0001929,2]
[338352198,1726545044850,-270.461735,0.0001929,2]
[338352199,1726545044859,-270.461735,0.0001929,2]
[338352200,1726545044869,-151.0,0.0001929,2]
[338352201,1726545044878,-232.00306,0.0001929,2]
[338352202,1726545044887,-263.36285,0.0001929,2]
[338352203,1726545044897,-263.36285,0.0001929,2]
[338352204,1726545044906,-339.433553,0.0001929,2]
[338352205,1726545044916,-339.433553,0.0001929,2]
[338352206,1726545044925,-339.433553,0.0001929,2]
[338352207,1726545044935,-339.433553,0.0001929,2]
[338352208,1726545044944,-160.716215,0.0001929,2]
[338352209,1726545044954,-160.716215,0.0001929,2]
[338352210,1726545044964,-332.852387,0.0001929,2]
[338352211,1726545044973,-332.852387,0.0001929,2]
[338352212,1726545044982,-1945.438801,0.0001929,2]
[338352213,1726545044993,-685.082497,0.0001929,2]
[338352214,1726545045002,-151.0,0.0001929,2]
[338352215,1726545045011,-685.082497,0.0001929,2]
[338352216,1726545045020,-151.0,0.0001929,2]
[338352217,1726545045030,-151.0,0.0001929,2]
[338352218,1726545045039,-151.0,0.0001929,2]
[338352219,1726545045049,-1075.205265,0.0001929,2]
[338352220,1726545045062,-1075.205265,0.0001929,2]
[338352221,1726545045075,-151.0,0.0001929,2]
[338352222,1726545045085,-151.0,0.0001929,2]
[338352223,1726545045094,-151.0,0.0001929,2]
[338352224,1726545045104,-151.0,0.0001929,2]
[338352225,1726545045113,-151.0,0.0001929,2]
[338352226,1726545045122,-151.0,0.0001929,2]
[338352227,1726545045131,-151.0,0.0001929,2]
[338352228,1726545045140,-2416.18015,0.0001929,2]
[338352229,1726545045150,-2416.18015,0.0001929,2]
[338352230,1726545045160,-2416.18015,0.0001929,2]
[338352231,1726545045169,-2416.18015,0.0001929,2]
[338352232,1726545045179,-1903.03768,0.0001929,2]
[338352233,1726545045190,-1903.03768,0.0001929,2]
[338352234,1726545045200,-1415.185085,0.0001929,2]
[338352235,1726545045210,-1415.185085,0.0001929,2]
[338352236,1726545045219,-1415.185085,0.0001929,2]
[338352237,1726545045228,-1415.185085,0.0001929,2]
[338352238,1726545045238,-27923.4797785,0.0001929,3]
[338352239,1726545045247,-400.49115,0.0001929,2]
[338352240,1726545045256,-400.49115,0.0001929,2]
[338352241,1726545045265,-819.44016,0.0001929,2]
[338352242,1726545045275,-819.44016,0.0001929,2]
[338352243,1726545045286,-2904.060664,0.0001929,2]
[338352244,1726545045296,-2904.060664,0.0001929,2]
[338352245,1726545045305,-158.220405,0.0001929,2]
[338352246,1726545045315,-150.01,0.00019298,2]
[338352247,1726545045331,-1669.89673448,0.00019298,2]
[338352248,1726545045340,-160.97639217,0.00019299,2]
[338352249,1726545045351,-160.0,0.00019299,2]
[338352250,1726545045361,-3270.77,0.000193,2]
[338352251,1726545045370,-104841.59,0.000193,2]
[338352252,1726545045380,-64515.43,0.000193,2]
[338352253,1726545045389,-597.74,0.000193,2]
[338352254,1726545045400,-7664.78,0.000193,2]
[338352255,1726545045409,-151.0,0.000193,2]
[338352256,1726545045418,-151.0,0.000193,2]
[338352257,1726545045427,-210.784734,0.000193,2]
[338352258,1726545045438,-151.0,0.000193,2]
[338352259,1726545045447,-151.0,0.000193,2]
[338352260,1726545045457,-5000.0,0.000193,3]
[338352261,1726545045467,-151.0,0.000193,2]
[338352262,1726545045476,-151.0,0.000193,2]
[338352263,1726545045486,-150.112233,0.000193,2]
[338352264,1726545045495,-151.0,0.000193,2]
[338352265,1726545045505,-151.0,0.000193,2]
[338352266,1726545045514,-151.0,0.000193,2]
[338352267,1726545045524,-151.0,0.000193,2]
[338352268,1726545045533,-151.0,0.000193,2]
[338352269,1726545045689,-151.0,0.000193,2]
[338352270,1726545045700,-286.470757,0.000193,2]
[338352271,1726545045710,-286.470757,0.000193,2]
[338352272,1726545045719,-286.470757,0.000193,2]
[338352273,1726545045730,-286.470757,0.000193,2]
[338352274,1726545045739,-151.0,0.000193,2]
[338352275,1726545045749,-151.0,0.000193,2]
[338352276,1726545045759,-151.0,0.000193,2]
[338352277,1726545045769,-151.0,0.000193,2]
[338352278,1726545045778,-151.0,0.000193,2]
[338352279,1726545045788,-151.0,0.000193,2]
[338352280,1726545045797,-151.0,0.000193,2]
[338352281,1726545045806,-152.051601,0.000193,2]
[338352282,1726545045816,-151.0,0.000193,2]
[338352283,1726545045825,-151.0,0.000193,2]
[338352284,1726545045834,-151.0,0.000193,2]
[338352285,1726545045843,-280.167405,0.000193,2]
[338352286,1726545045852,-151.0,0.000193,2]
[338352287,1726545045862,-151.0,0.000193,2]
[338352288,1726545045871,-151.0,0.000193,2]
[338352289,1726545045880,-1578.423904,0.000193,2]
[338352290,1726545045891,-1578.423904,0.000193,2]
[338352291,1726545045900,-1578.423904,0.000193,2]
[338352292,1726545045910,-1578.423904,0.000193,2]
[338352293,1726545045920,-158.440192,0.000193,2]
[338352294,1726545045930,-192.153508,0.000193,2]
[338352295,1726545045941,-192.153508,0.000193,2]
[338352296,1726545045952,-192.153508,0.000193,2]
[338352297,1726545045963,-192.153508,0.000193,2]
[338352298,1726545045973,-222326.15767834,0.000193,2]
[338352299,1726545047059,-158.220405,0.0001878,2]
[338352300,1726545047068,-158.220405,0.0001899,2]
[338352301,1726545047077,-158.220405,0.0001916,2]
[338352302,1726545047087,-378.57796806,0.0001928,2]
[338352303,1726545047292,249.278637,0.00013699,2]
[338352304,1726545047803,-158.220405,0.00019261,2]
[338352305,1726545047812,-158.220405,0.0001927,2]
[338352306,1726545047823,-621.42203194,0.0001928,2]
[338352307,1726545047832,-1000.0,0.0001928,2]
[338352308,1726545047841,-1000.0,0.0001928,2]
[338352309,1726545047852,-1042.992596,0.0001928,2]
[338352310,1726545047861,-158.220405,0.0001929,2]
[338352311,1726545047871,-202553.53796231,0.000193,2]
[338352375,1726545278217,1400.0,0.00025,60]
[338352402,1726545571949,272.988339,0.00013699,2]
[338352423,1726545617498,429.8,0.00025,120]
[338352424,1726545625842,1562.0,0.00025,60]
[338352425,1726545650554,1531.0,0.00026,120]
[338352426,1726545671214,1531.0,0.00025,60]
[338352452,1726545773682,2061.55137,0.00025,60]
[338352461,1726545824549,500.0,0.00026,120]
[338352466,1726545844636,5414.8388,0.00025,60]
[338352467,1726545845235,500.0,0.00026,120]
[338352468,1726545849298,500.0,0.00026,120]
[338352469,1726545851747,500.0,0.00026,120]
[338352471,1726545860072,500.0,0.00026,120]
[338352483,1726545861244,500.0,0.00026,120]
[338352484,1726545862439,500.0,0.00026,120]
[338352486,1726545863637,500.0,0.00026,120]
[338352487,1726545864894,500.0,0.00026,120]
[338352488,1726545866057,500.0,0.00026,120]
[338352489,1726545867236,500.0,0.00026,120]
[338352490,1726545868778,500.0,0.00026,120]
[338352491,1726545870008,500.0,0.00026,120]
[338352492,1726545871255,500.0,0.00026,120]
[338352493,1726545872498,500.0,0.00026,120]
[338352494,1726545873753,500.0,0.00026,120]
[338352495,1726545874894,500.0,0.00026,120]
[338352496,1726545876118,500.0,0.00026,120]
[338352497,1726545877263,500.0,0.00026,120]
[338352498,1726545880473,500.0,0.00026,120]
[338352500,1726545909744,500.0,0.00026,120]
[338352501,1726545911472,500.0,0.00026,120]
[338352502,1726545913174,500.0,0.00026,120]
[338352503,1726545914639,500.0,0.00026,120]
[338352504,1726545916128,500.0,0.00026,120]
[338352505,1726545917894,500.0,0.00026,120]
[338352506,1726545919092,500.0,0.00026,120]
[338352508,1726545920663,500.0,0.00026,120]
[338352509,1726545922593,500.0,0.00026,120]
[338352510,1726545923998,500.0,0.00026,120]
[338352512,1726546034852,59324.0,0.00014,2]
[338352513,1726546038129,-214.459574,0.000149,2]
[338352514,1726546038154,-55.540426,0.00014963,2]
[338352515,1726546040128,-129.1197447,0.00014963,2]
[338352516,1726546040151,-2622.0304052,0.00015022,2]
[338352517,1726546040174,-353.7192555,0.00015079,2]
[338352518,1726546040197,-300.0,0.00015663,2]
[338352519,1726546040220,-300.0,0.00015663,2]
[338352520,1726546040244,-12396.15645255,0.00015664,2]
[338352522,1726546104065,279.689626,0.00013699,2]
[338352524,1726546147124,-904.91302104,0.00015458,2]
[338352525,1726546150203,-1214.16740596,0.00015458,2]
[338352526,1726546150230,-300.0,0.00015663,2]
[338352527,1726546150252,-300.0,0.00015663,2]
[338352528,1726546150276,-12503.84354745,0.00015664,2]
[338352529,1726546150305,-3000.0,0.00015708,2]
[338352530,1726546150337,-9245.2811195,0.0001572,2]
[338352531,1726546150362,-170.72720256,0.00015778,2]
[338352532,1726546150387,-150.0,0.00016072,2]
[338352533,1726546150413,-186.781731,0.00016164,2]
[338352534,1726546150437,-186.781731,0.00016209,2]
[338352535,1726546150461,-186.781731,0.00016253,2]
[338352536,1726546150486,-186.781731,0.00016297,2]
[338352537,1726546150514,-186.781731,0.00016342,2]
[338352538,1726546150538,-186.781731,0.00016386,2]
[338352539,1726546150561,-186.781731,0.0001643,2]
[338352540,1726546150588,-186.781731,0.00016475,2]
[338352541,1726546150617,-170.72720256,0.00016492,2]
[338352542,1726546150641,-186.781731,0.00016519,2]
[338352543,1726546150667,-6969.081135,0.00016552,2]
[338352544,1726546150693,-186.781731,0.00016563,2]
[338352545,1726546150714,-186.781731,0.00016608,2]
[338352546,1726546150736,-186.781731,0.00016652,2]
[338352547,1726546150757,-6729.29504265,0.00016673,2]
[338352548,1726546150778,-186.781731,0.00016696,2]
[338352549,1726546150799,-6729.29504265,0.00016725,2]
[338352550,1726546150820,-186.781731,0.00016741,2]
[338352551,1726546150841,-186.781731,0.00016785,2]
[338352552,1726546150863,-186.781731,0.00016829,2]
[338352553,1726546150884,-186.781731,0.00016873,2]
[338352554,1726546150907,-186.781731,0.00016918,2]
[338352555,1726546151133,-186.781731,0.00016962,2]
[338352556,1726546151157,-186.781731,0.00017006,2]
[338352557,1726546151178,-420.0,0.00017131,2]
[338352558,1726546151200,-6729.29504265,0.00017199,2]
[338352559,1726546151221,-170.72720256,0.00017205,2]
[338352560,1726546151243,-7591.18162658,0.00017228,2]
[338352561,1726546151263,-420.0,0.0001723,2]
[338352562,1726546151284,-423.34971717,0.00017253,5]
[338352563,1726546223500,222.58,0.00010959,2]
[338352591,1726546237941,-225.37322,0.00016422,2]
[338352592,1726546237950,-225.37322,0.00016467,2]
[338352593,1726546237960,-225.37322,0.00016512,2]
[338352594,1726546237969,-225.37322,0.00016557,2]
[338352595,1726546237978,-225.37322,0.00016602,2]
[338352596,1726546237988,-225.37322,0.00016647,2]
[338352597,1726546237997,-225.37322,0.00016692,2]
[338352598,1726546238007,-225.37322,0.00016737,2]
[338352599,1726546238016,-225.37322,0.00016782,2]
[338352600,1726546238027,-225.37322,0.00016827,2]
[338352601,1726546238036,-225.37322,0.00016873,2]
[338352602,1726546238045,-225.37322,0.00016918,2]
[338352603,1726546238055,-225.37322,0.00016963,2]
[338352604,1726546238064,-225.37322,0.00017008,2]
[338352605,1726546238074,-225.37322,0.00017053,2]
[338352606,1726546238083,-225.37322,0.00017098,2]
[338352607,1726546238093,-225.37322,0.00017143,2]
[338352608,1726546238102,-225.37322,0.00017188,2]
[338352609,1726546238111,-1464.37568707,0.00017195,2]
[338352610,1726546238121,-225.37322,0.00017233,2]
[338352611,1726546238130,-1112.55703708,0.00017253,5]
[338352612,1726546238139,-225.37322,0.00017278,2]
[338352613,1726546238148,-300.0,0.00017293,2]
[338352614,1726546238158,-300.0,0.00017293,2]
[338352615,1726546238167,-370.89116551,0.00017293,2]
[338352616,1726546238178,-500.0,0.00017293,2]
[338352617,1726546238188,-500.0,0.00017293,2]
[338352618,1726546238198,-500.0,0.00017293,2]
[338352619,1726546238208,-500.0,0.00017293,2]
[338352620,1726546238218,-500.0,0.00017293,2]
[338352621,1726546238228,-500.0,0.00017293,2]
[338352622,1726546238237,-370.28448367,0.00017293,2]
[338352623,1726546238247,-500.0,0.00017293,2]
[338352624,1726546238265,-500.0,0.00017293,2]
[338352625,1726546238274,-247.82823752,0.00017293,2]
[338352626,1726546238283,-526.3567182,0.00017293,2]
[338352627,1726546238293,-500.0,0.00017293,2]
[338352628,1726546238302,-500.0,0.00017293,2]
[338352630,1726546238311,-500.0,0.00017293,2]
[338352632,1726546238321,-500.0,0.00017293,2]
[338352633,1726546238331,-500.0,0.00017293,2]
[338352634,1726546238340,-500.0,0.00017293,2]
[338352635,1726546238350,-500.0,0.00017293,2]
[338352636,1726546238359,-500.0,0.00017293,2]
[338352637,1726546238368,-500.0,0.00017293,2]
[338352638,1726546238378,-500.0,0.00017293,2]
[338352639,1726546238387,-500.0,0.00017293,2]
[338352640,1726546238396,-500.0,0.00017293,2]
[338352641,1726546238405,-500.0,0.00017293,2]
[338352642,1726546238414,-500.0,0.00017293,2]
[338352643,1726546238423,-500.0,0.00017293,2]
[338352644,1726546238433,-500.0,0.00017293,2]
[338352645,1726546238443,-500.0,0.00017293,2]
[338352646,1726546238452,-500.0,0.00017293,2]
[338352647,1726546238462,-500.0,0.00017293,2]
[338352648,1726546238471,-500.0,0.00017293,2]
[338352649,1726546238480,-500.0,0.00017293,2]
[338352650,1726546238489,-500.0,0.00017293,2]
[338352651,1726546238500,-500.0,0.00017293,2]
[338352652,1726546238510,-500.0,0.00017293,2]
[338352653,1726546238519,-500.0,0.00017293,2]
[338352654,1726546238529,-500.0,0.00017293,2]
[338352655,1726546238538,-500.0,0.00017293,2]
[338352656,1726546238547,-500.0,0.00017293,2]
[338352657,1726546238557,-500.0,0.00017293,2]
[338352658,1726546238567,-500.0,0.00017293,2]
[338352659,1726546238576,-500.0,0.00017293,2]
[338352660,1726546238586,-500.0,0.00017293,2]
[338352661,1726546238595,-500.0,0.00017293,2]
[338352662,1726546238604,-500.0,0.00017293,2]
[338352663,1726546238615,-500.0,0.00017293,2]
[338352664,1726546238625,-500.0,0.00017293,2]
[338352665,1726546238634,-500.0,0.00017293,2]
[338352666,1726546238644,-500.0,0.00017293,2]
[338352667,1726546238653,-500.0,0.00017293,2]
[338352668,1726546238662,-500.0,0.00017293,2]
[338352669,1726546238673,-500.0,0.00017293,2]
[338352670,1726546238682,-500.0,0.00017293,2]
[338352671,1726546238692,-500.0,0.00017293,2]
[338352672,1726546238701,-500.0,0.00017293,2]
[338352673,1726546238711,-500.0,0.00017293,2]
[338352674,1726546238720,-500.0,0.00017293,2]
[338352675,1726546238730,-500.0,0.00017293,2]
[338352676,1726546238739,-500.0,0.00017293,2]
[338352677,1726546238756,-500.0,0.00017293,2]
[338352678,1726546238766,-500.0,0.00017293,2]
[338352679,1726546238775,-500.0,0.00017293,2]
[338352680,1726546238784,-500.0,0.00017293,2]
[338352681,1726546238794,-500.0,0.00017293,2]
[338352682,1726546238803,-500.0,0.00017293,2]
[338352683,1726546238812,-500.0,0.00017293,2]
[338352684,1726546238822,-500.0,0.00017293,2]
[338352685,1726546238830,-500.0,0.00017293,2]
[338352686,1726546238840,-500.0,0.00017293,2]
[338352687,1726546238850,-500.0,0.00017293,2]
[338352688,1726546238859,-500.0,0.00017293,2]
[338352689,1726546238869,-500.0,0.00017293,2]
[338352690,1726546238879,-500.0,0.00017293,2]
[338352691,1726546238888,-500.0,0.00017293,2]
[338352692,1726546238897,-500.0,0.00017293,2]
[338352693,1726546238907,-500.0,0.00017293,2]
[338352694,1726546238916,-500.0,0.00017293,2]
[338352695,1726546238926,-500.0,0.00017293,2]
[338352696,1726546238935,-500.0,0.00017293,2]
[338352697,1726546238945,-500.0,0.00017293,2]
[338352698,1726546238954,-500.0,0.00017293,2]
[338352699,1726546238964,-500.0,0.00017293,2]
[338352700,1726546238974,-500.0,0.00017293,2]
[338352701,1726546238984,-500.0,0.00017293,2]
[338352702,1726546238993,-500.0,0.00017293,2]
[338352703,1726546239006,-500.0,0.00017293,2]
[338352704,1726546239015,-500.0,0.00017293,2]
[338352705,1726546239025,-500.0,0.00017293,2]
[338352706,1726546239034,-500.0,0.00017293,2]
[338352707,1726546239044,-297.78443879,0.00017293,2]
[338352708,1726546239053,-500.0,0.00017293,2]
[338352709,1726546239063,-500.0,0.00017293,2]
[338352710,1726546239072,-500.0,0.00017293,2]
[338352711,1726546239082,-500.0,0.00017293,2]
[338352712,1726546239091,-500.0,0.00017293,2]
[338352713,1726546239101,-500.0,0.00017293,2]
[338352714,1726546239111,-500.0,0.00017293,2]
[338352715,1726546239121,-500.0,0.00017293,2]
[338352716,1726546239130,-500.0,0.00017293,2]
[338352717,1726546239139,-456.9986499,0.00017293,2]
[338352718,1726546239149,-500.0,0.00017293,2]
[338352719,1726546239159,-500.0,0.00017293,2]
[338352720,1726546239168,-500.0,0.00017293,2]
[338352721,1726546239178,-156512.170067,0.00017295,2]
[338352722,1726546239188,-2103.7947358,0.00017295,2]
[338352723,1726546239197,-500.0,0.00017305,2]
[338352724,1726546239207,-500.0,0.00017305,2]
[338352725,1726546239216,-500.0,0.00017305,2]
[338352726,1726546239226,-303.16485977,0.00017305,2]
[338352727,1726546239236,-500.0,0.00017305,2]
[338352728,1726546239246,-212.95921472,0.00017305,2]
[338352729,1726546239255,-500.0,0.00017305,2]
[338352730,1726546239265,-500.0,0.00017305,2]
[338352731,1726546239276,-419.48102279,0.00017305,2]
[338352732,1726546239286,-6729.29504265,0.00017306,2]
[338352734,1726546239296,-6729.29504265,0.00017608,2]
[338352735,1726546239305,-1464.37568707,0.00017666,2]
[338352736,1726546239315,-78256.0850333,0.00017803,2]
[338352737,1726546239325,-1051.8973679,0.00017803,2]
[338352738,1726546239335,-78256.0850333,0.00017804,2]
[338352739,1726546239344,-1051.8973679,0.00017804,2]
[338352740,1726546239354,-6729.29504265,0.00017919,2]
[338352741,1726546239365,-78256.0850333,0.00018015,2]
[338352742,1726546239374,-1051.8973679,0.00018015,2]
[338352743,1726546239384,-157.43873844,0.00018016,2]
[338352744,1726546239393,-6969.08113495,0.00018025,2]
[338352745,1726546239403,-999.40257335,0.00018028,2]
[338352746,1726546239412,-1464.37568707,0.00018137,2]
[338352747,1726546239423,-6729.29504265,0.00018178,2]
[338352748,1726546239433,-1002.73351535,0.00018292,2]
[338352749,1726546239443,-1051.8973679,0.00018325,2]
[338352750,1726546239453,-1076.2064252,0.00018335,2]
[338352751,1726546239462,-6729.29504265,0.00018401,2]
[338352752,1726546239471,-1464.37568707,0.00018607,2]
[338352753,1726546239481,-1051.8973679,0.0001864,2]
[338352754,1726546239491,-151.0,0.0001865,2]
[338352755,1726546239501,-151.0,0.0001865,2]
[338352756,1726546239511,-151.0,0.0001865,2]
[338352757,1726546239520,-152.765858,0.0001865,2]
[338352758,1726546239530,-2112.708189,0.0001865,2]
[338352759,1726546239539,-2112.708189,0.0001865,2]
[338352760,1726546239549,-2416.18015,0.0001865,2]
[338352761,1726546239558,-2416.18015,0.0001865,2]
[338352762,1726546239567,-339.433553,0.0001865,2]
[338352763,1726546239578,-339.433553,0.0001865,2]
[338352764,1726546239588,-151.0,0.0001865,2]
[338352765,1726546239597,-151.0,0.0001865,2]
[338352766,1726546239607,-151.0,0.0001865,2]
[338352767,1726546239620,-151.0,0.0001865,2]
[338352769,1726546239630,-151.0,0.0001865,2]
[338352770,1726546239639,-151.0,0.0001865,2]
[338352772,1726546239648,-246.603779,0.0001865,2]
[338352774,1726546239658,-1415.185085,0.0001865,2]
[338352775,1726546239667,-279.253674,0.0001865,2]
[338352776,1726546239677,-1415.185085,0.0001865,2]
[338352777,1726546239686,-279.253674,0.0001865,2]
[338352778,1726546239695,-226.208864,0.000187,2]
[338352779,1726546239705,-150.112235,0.000187,2]
[338352780,1726546239715,-1051.8973679,0.0001871,2]
[338352781,1726546239724,-77343.02841093,0.0001872,2]
[338352782,1726546239734,-1051.8973679,0.0001879,2]
[338352784,1726546239744,-150.112233,0.000188,2]
[338352785,1726546239754,-150.112233,0.000188,2]
[338352786,1726546239764,-3000.0,0.000188,2]
[338352787,1726546239773,-3000.0,0.0001881,2]
[338352788,1726546239782,-3000.0,0.0001882,2]
[338352789,1726546239792,-3000.0,0.0001883,2]
[338352790,1726546239802,-1076.2064252,0.00018835,2]
[338352791,1726546239811,-3000.0,0.0001884,2]
[338352792,1726546239821,-3000.0,0.0001885,2]
[338352793,1726546239830,-6729.29504265,0.00018855,2]
[338352794,1726546239840,-3000.0,0.0001886,2]
[338352795,1726546239850,-3000.0,0.0001887,2]
[338352796,1726546239859,-3000.0,0.0001888,2]
[338352797,1726546239869,-420.0,0.00018882,2]
[338352798,1726546239880,-3000.0,0.0001889,2]
[338352799,1726546239889,-2703.47754782,0.0001889,2]
[338352800,1726546239899,-150.112233,0.000189,2]
[338352801,1726546239908,-150.112233,0.000189,2]
[338352802,1726546239918,-3000.0,0.000189,2]
[338352803,1726546239928,-150.112233,0.000189,2]
[338352804,1726546239938,-3000.0,0.0001891,2]
[338352805,1726546239948,-3000.0,0.0001892,2]
[338352806,1726546239958,-3000.0,0.0001893,2]